bitfinex/quotes_ETHUSD_20250923
["timestamp","ask_amount","ask_price","bid_price","bid_amount"]
[1758604587267,49.96648505,4188.4,4188.3,0.004]
[1758604587805,50.75848505,4188.4,4188.3,0.004]
[1758604588866,2.38766057,4188.2,4188.1,0.024]
[1758604589072,7.29544775,4188.2,4188.1,0.024]
[1758604589300,7.99844775,4188.2,4188.1,0.024]
[1758604589498,8.3535261,4188.2,4188.1,0.024]
[1758604589775,8.3535261,4188.2,4187.1,0.2546]
[1758604589776,0.792,4188.0,4187.1,0.02]
[1758604589970,2.38823079,4187.2,4187.1,0.02]
[1758604590184,7.29601797,4187.2,4187.1,0.02]
[1758604592998,7.29636915,4187.2,4187.1,0.02]
[1758604593196,7.1624836,4187.2,4187.1,0.02]
[1758604593388,7.29641469,4187.2,4187.1,0.02]
[1758604593588,8.62091759,4187.2,4187.1,0.02]
[1758604594025,8.62117334,4187.2,4187.1,0.02]
[1758604594814,11.68126574,4187.2,4187.1,0.02]
[1758604595021,19.59823235,4187.2,4187.1,0.02]
[1758604597339,18.74126574,4187.2,4187.1,0.02]
[1758604598300,2.38880129,4186.2,4186.1,0.2546]
[1758604598633,4.39295764,4186.2,4186.1,0.2546]
[1758604598924,4.39295764,4186.2,4186.1,0.6883]
[1758604598925,4.90707912,4186.2,4186.1,0.6883]
[1758604599732,7.29588041,4186.2,4186.1,0.6883]
[1758604600224,14.35588041,4186.2,4186.1,0.6883]
[1758604600425,11.96707912,4186.2,4186.1,0.6883]
[1758604602825,11.31713133,4186.2,4186.1,0.6883]
[1758604604604,11.31713133,4186.2,4186.1,0.02]
[1758604605234,11.64813284,4186.2,4186.1,0.02]
[1758604605405,12.29570636,4186.2,4186.1,0.02]
[1758604605603,11.96470485,4186.2,4186.1,0.02]
[1758604606530,14.35350614,4186.2,4186.1,0.02]
[1758604607439,11.96470485,4186.2,4186.1,0.2659]
[1758604607933,11.96470485,4186.2,4186.1,0.6985]
[1758604608820,7.93070485,4186.2,4186.1,0.6985]
[1758604609026,11.96370485,4186.2,4186.1,0.6985]
[1758604609849,11.82991616,4186.2,4186.1,0.6985]
[1758604610138,11.96379879,4186.2,4186.1,0.6985]
[1758604611603,14.35260008,4186.2,4186.1,0.02]
[1758604611916,14.35260008,4186.2,4186.1,0.2659]
[1758604611917,11.96379879,4186.2,4186.1,0.2659]
[1758604612115,11.96379879,4186.2,4186.1,0.6985]
[1758604613243,11.96179879,4186.2,4186.1,0.6985]
[1758604616318,11.96179879,4186.2,4186.1,0.2659]
[1758604616649,11.96179879,4186.2,4186.1,0.02]
[1758604617724,14.35060008,4186.2,4186.1,0.02]
[1758604618366,16.38181572,4186.2,4186.1,0.02]
[1758604618654,16.15661572,4186.2,4186.1,0.02]
[1758604619721,16.83511572,4186.2,4186.1,0.02]
[1758604619921,12.35081572,4186.2,4186.1,0.02]
[1758604620171,16.38181572,4186.2,4186.1,0.02]
[1758604620372,16.83511572,4186.2,4186.1,0.02]
[1758604620555,16.83511572,4186.2,4186.1,0.024]
[1758604621510,17.6915965,4186.2,4186.1,0.024]
[1758604621647,15.30279521,4186.2,4186.1,0.024]
[1758604621847,9.73681443,4186.2,4186.1,0.024]
[1758604622064,9.73681443,4186.2,4186.1,0.7025]
[1758604622065,11.95979879,4186.2,4186.1,0.7025]
[1758604623957,14.34860008,4186.2,4186.1,0.024]
[1758604624155,11.95979879,4186.2,4186.1,0.024]
[1758604624377,12.60503561,4186.2,4186.1,0.2699]
[1758604624577,12.60503561,4186.2,4186.1,0.7025]
[1758604625648,14.9938369,4186.2,4186.1,0.2699]
[1758604625850,16.17249488,4186.2,4186.1,0.024]
[1758604626070,16.39769488,4186.2,4186.1,0.024]
[1758604626278,16.17249488,4186.2,4186.1,0.024]
[1758604627180,13.78369359,4186.2,4186.1,0.024]
[1758604627393,17.02897566,4186.2,4186.1,0.024]
[1758604627601,16.85099488,4186.2,4186.1,0.024]
[1758604627903,16.17249488,4186.2,4186.1,0.024]
[1758604628979,16.17305287,4186.2,4186.1,0.024]
[1758604629179,16.17398458,4186.2,4186.1,0.024]
[1758604629544,13.78518329,4186.2,4186.1,0.2699]
[1758604629751,12.60650178,4186.2,4186.1,0.2699]
[1758604630005,14.99530307,4186.2,4186.1,0.2699]
[1758604630162,14.35008978,4186.2,4186.1,0.024]
[1758604630352,15.02858978,4186.2,4186.1,0.024]
[1758604631000,28.00319132,4186.2,4186.1,0.024]
[1758604631164,33.87922686,4186.2,4186.1,0.024]
[1758604631405,32.59377695,4186.2,4186.1,0.024]
[1758604631552,2.38908665,4185.7,4185.6,0.004]
[1758604631851,12.71145349,4185.7,4185.6,0.004]
[1758604632075,2.38931498,4185.3,4185.2,0.004]
[1758604632245,22.40972423,4185.3,4185.2,0.004]
[1758604632452,23.08822423,4185.3,4185.2,0.004]
[1758604632682,23.42080258,4185.3,4185.2,0.004]
[1758604632896,24.21280258,4185.3,4185.2,0.004]
[1758604633203,26.30479064,4185.3,4185.2,0.004]
[1758604633558,2.38937207,4185.2,4185.1,0.02]
[1758604633800,2.38954335,4184.9,4184.8,0.004]
[1758604634094,25.92739362,4184.9,4184.8,0.004]
[1758604634263,25.92739362,4184.9,4184.1,0.02]
[1758604634264,2.38982888,4184.4,4184.1,0.02]
[1758604634589,11.14991254,4184.4,4184.1,0.02]
[1758604634790,11.82841254,4184.4,4184.1,0.02]
[1758604635080,13.3788977,4184.4,4184.1,0.02]
[1758604635292,13.3788977,4184.4,4184.3,1e-08]
[1758604635293,14.50347605,4184.4,4184.3,1e-08]
[1758604635491,14.50347605,4184.4,4184.1,0.02]
[1758604635492,6.18194311,4184.2,4184.1,1e-08]
[1758604635787,12.70333004,4184.2,4184.1,1e-08]
[1758604635995,13.97774297,4184.2,4184.1,1e-08]
[1758604636290,12.69222288,4184.2,4184.1,1e-08]
[1758604637292,7.7898249,4184.2,4184.1,1e-08]
[1758604637490,12.36198569,4184.2,4184.1,0.23490001]
[1758604638494,12.36198569,4184.2,4184.1,1e-08]
[1758604638703,6.26098569,4184.2,4184.1,1e-08]
[1758604638993,2.61276663,4184.2,4184.1,1e-08]
[1758604639196,8.84827133,4184.2,4184.1,1e-08]
[1758604639367,10.48478933,4184.2,4184.1,1e-08]
[1758604640404,13.48478933,4184.2,4184.1,1e-08]
[1758604640558,14.19528933,4184.2,4184.1,1e-08]
[1758604640896,20.54478933,4184.2,4184.1,1e-08]
[1758604641477,20.54478933,4184.2,4184.1,0.00400001]
[1758604641675,7.79553104,4184.2,4184.1,0.70160001]
[1758604641890,11.31782352,4184.2,4184.1,0.70160001]
[1758604643503,7.28282352,4184.2,4184.1,0.70160001]
[1758604643676,11.32182352,4184.2,4184.1,0.70160001]
[1758604644267,11.32182352,4184.2,4184.1,0.23890001]
[1758604644689,11.32182352,4184.2,4184.1,0.70160001]
[1758604647168,11.32182352,4184.2,4184.1,0.00400001]
[1758604647374,11.32182352,4184.2,4184.1,0.23890001]
[1758604647573,11.32182352,4184.2,4184.1,0.70160001]
[1758604647903,11.32182352,4184.2,4184.1,3.09160024]
[1758604648072,7.28282352,4184.2,4184.1,3.64016967]
[1758604648274,11.098,4184.2,4184.1,3.64016967]
[1758604648485,11.32046776,4184.2,4184.1,0.70160001]
[1758604650275,11.32046776,4184.2,4184.1,3.09160024]
[1758604652774,11.32046776,4184.2,4184.1,0.70160001]
[1758604653079,11.32046776,4184.2,4184.1,0.00400001]
[1758604653509,11.32046776,4184.2,4184.1,2.62890024]
[1758604653685,11.32046776,4184.2,4184.1,0.23890001]
[1758604653887,11.32046776,4184.2,4184.1,2.62890024]
[1758604654190,11.32046776,4184.2,4184.1,0.00400001]
[1758604655287,8.49305765,4184.2,4184.1,0.00400001]
[1758604655486,9.1403917,4184.2,4184.1,0.00400001]
[1758604660115,8.4298917,4184.2,4184.1,0.00400001]
[1758604660426,4.3918917,4184.2,4184.1,0.00400001]
[1758604660607,10.5008917,4184.2,4184.1,0.00400001]
[1758604661317,12.06656315,4184.2,4184.1,0.00400001]
[1758604663922,8.96612004,4184.2,4184.1,0.00400001]
[1758604664120,0.86980181,4184.2,4184.1,0.70160001]
[1758604664287,4.90980181,4184.2,4184.1,0.70160001]
[1758604665122,4.90980181,4184.2,4184.1,3.09160024]
[1758604665332,0.86980181,4184.2,4184.1,3.09160024]
[1758604665515,4.26246776,4184.2,4184.1,3.09160024]
[1758604665851,4.26246776,4184.2,4184.1,0.70160001]
[1758604666009,4.91186226,4184.2,4184.1,0.23890001]
[1758604666200,4.91186226,4184.2,4184.1,0.67520001]
[1758604666606,4.91186226,4184.2,4184.1,3.06520024]
[1758604666922,4.91199614,4184.2,4184.1,3.06520024]
[1758604667733,4.91199614,4184.2,4184.1,0.67520001]
[1758604669840,4.91199614,4184.2,4184.1,3.06520024]
[1758604670141,4.91199614,4184.2,4184.1,0.67520001]
[1758604671040,4.91199614,4184.2,4184.1,0.00400001]
[1758604671912,5.77573319,4184.2,4184.1,0.00400001]
[1758604674012,8.1656763,4184.2,4184.1,0.00400001]
[1758604674337,5.77573319,4184.2,4184.1,0.00400001]
[1758604675037,8.1656763,4184.2,4184.1,0.00400001]
[1758604676147,6.4204319,4184.2,4184.1,0.00400001]
[1758604676648,8.81037501,4184.2,4184.1,0.00400001]
[1758604677015,8.8559763,4184.2,4184.1,0.00400001]
[1758604677220,9.50065291,4184.2,4184.1,0.00400001]
[1758604677650,8.8559763,4184.2,4184.1,0.00400001]
[1758604678219,8.85610635,4184.2,4184.1,0.00400001]
[1758604678949,8.85610987,4184.2,4184.1,0.00400001]
[1758604679849,13.14162996,4184.2,4184.1,0.00400001]
[1758604680147,11.85710987,4184.2,4184.1,0.00400001]
[1758604681267,11.85710987,4184.2,4183.9,0.004]
[1758604681268,2.39005736,4184.0,4183.9,0.004]
[1758604681434,25.57401749,4184.0,4183.9,0.004]
[1758604681639,26.26431749,4184.0,4183.9,0.004]
[1758604681948,24.9751102,4184.0,4183.9,0.004]
[1758604683264,26.03506972,4184.0,4183.9,0.004]
[1758604683466,19.93006972,4184.0,4183.9,0.004]
[1758604683666,26.26376972,4184.0,4183.9,0.004]
[1758604684171,24.9751102,4184.0,4183.9,0.004]
[1758604684563,26.26376972,4184.0,4183.9,0.004]
[1758604684760,24.9751102,4184.0,4183.9,0.004]
[1758604686062,26.26376972,4184.0,4183.9,0.004]
[1758604686371,26.26176972,4184.0,4183.9,0.004]
[1758604687262,25.7651102,4184.0,4183.9,0.004]
[1758604687463,27.05376972,4184.0,4183.9,0.004]
[1758604688066,15.08948331,4184.0,4183.9,0.004]
[1758604688244,14.65936514,4184.0,4183.9,0.004]
[1758604689274,14.65936514,4184.0,4183.9,0.6746]
[1758604689275,1.51598143,4184.0,4183.9,0.6746]
[1758604689573,0.87212971,4184.0,4183.9,0.6746]
[1758604689871,4.39477719,4184.0,4183.9,0.6746]
[1758604690077,4.26046776,4184.0,4183.9,0.6746]
[1758604691508,4.90955258,4184.0,4183.9,0.6746]
[1758604691777,4.39458374,4184.0,4183.9,0.6746]
[1758604691978,4.77543585,4184.0,4183.9,0.6746]
[1758604692188,4.9095523,4184.0,4183.9,0.6746]
[1758604692350,4.39458421,4184.0,4183.9,0.6746]
[1758604693481,4.9095523,4184.0,4183.9,0.004]
[1758604694046,4.9095523,4184.0,4183.9,0.2383]
[1758604694250,4.9095523,4184.0,4183.9,0.6746]
[1758604694451,4.90952309,4184.0,4183.9,0.6746]
[1758604694652,4.39458421,4184.0,4183.9,0.6746]
[1758604695394,4.90954297,4184.0,4183.9,0.6746]
[1758604696295,8.0296564,4184.0,4183.9,0.004]
[1758604697197,8.6951564,4184.0,4183.9,0.004]
[1758604698792,11.6951564,4184.0,4183.9,0.004]
[1758604698993,13.31639427,4184.0,4183.9,0.004]
[1758604699885,12.98381592,4184.0,4183.9,0.004]
[1758604700076,7.6572268,4184.0,4183.9,0.004]
[1758604700279,13.7602268,4184.0,4183.9,0.004]
[1758604707222,13.0947268,4184.0,4183.9,0.004]
[1758604707696,13.7602268,4184.0,4183.9,0.004]
[1758604708279,15.04888632,4184.0,4183.9,0.004]
[1758604708988,15.38146467,4184.0,4183.9,0.004]
[1758604710106,14.88480515,4184.0,4183.9,0.004]
[1758604710487,14.88484915,4184.0,4183.9,0.004]
[1758604712623,13.42734915,4184.0,4183.9,0.004]
[1758604712913,14.38326707,4184.0,4183.9,0.004]
[1758604713119,23.57075721,4184.0,4183.9,0.004]
[1758604714523,23.57075721,4184.0,4183.9,0.2382]
[1758604715020,23.57075721,4184.0,4183.9,0.6728]
[1758604715222,24.42972502,4184.0,4183.9,0.6728]
[1758604716030,0.87165737,4184.0,4183.9,0.004]
[1758604716247,7.29371473,4184.0,4183.9,0.6728]
[1758604718197,4.90365737,4184.0,4183.9,0.6728]
[1758604718425,4.90363321,4184.0,4183.9,0.6728]
[1758604718624,7.29369057,4184.0,4183.9,0.6728]
[1758604719609,19.10025336,4184.0,4183.9,0.004]
[1758604719809,19.76575336,4184.0,4183.9,0.004]
[1758604720020,19.10025336,4184.0,4183.9,0.004]
[1758604720734,8.61926695,4184.0,4183.9,0.004]
[1758604720896,8.61926695,4184.0,4183.9,0.2382]
[1758604721229,7.29369057,4184.0,4183.9,0.004]
[1758604721429,7.29369057,4184.0,4183.9,0.6728]
[1758604722014,7.29369057,4184.0,4183.9,0.004]
[1758604723520,18.63364479,4184.0,4183.9,0.004]
[1758604723838,21.07175516,4184.0,4183.9,0.004]
[1758604725275,20.21278735,4184.0,4183.9,0.004]
[1758604726248,21.07272991,4184.0,4183.9,0.004]
[1758604727243,20.2137621,4184.0,4183.9,0.248]
[1758604727764,21.07272991,4184.0,4183.9,0.004]
[1758604728248,20.2137621,4184.0,4183.9,0.004]
[1758604728652,21.07272991,4184.0,4183.9,0.004]
[1758604728827,21.77652991,4184.0,4183.9,0.004]
[1758604729027,21.25014045,4184.0,4183.9,0.004]
[1758604729351,20.2127621,4184.0,4183.9,0.004]
[1758604730644,9.73177569,4184.0,4183.9,0.004]
[1758604731020,22.56723759,4184.0,4183.9,0.004]
[1758604731540,22.10093759,4184.0,4183.9,0.004]
[1758604731935,25.56723759,4184.0,4183.9,0.004]
[1758604732134,26.85573386,4184.0,4183.9,0.004]
[1758604733752,14.72407196,4184.0,4183.9,0.004]
[1758604733956,12.73177569,4184.0,4183.9,0.004]
[1758604734939,12.37510124,4184.0,4183.9,0.004]
[1758604735256,12.73344044,4184.0,4183.9,0.004]
[1758604737358,12.73344044,4184.0,4183.9,0.248]
[1758604737662,12.73344044,4184.0,4183.9,0.004]
[1758604738058,12.73344044,4184.0,4183.9,0.248]
[1758604738566,7.90527271,4184.0,4183.9,0.248]
[1758604738752,0.87427271,4184.0,4183.9,0.7046]
[1758604741352,4.90527271,4184.0,4183.9,0.7046]
[1758604742264,7.29533007,4184.0,4183.9,0.004]
[1758604742567,4.90527271,4184.0,4183.9,0.004]
[1758604742864,4.90527271,4184.0,4183.9,0.7046]
[1758604743372,7.29533007,4184.0,4183.9,0.7046]
[1758604744057,4.90527271,4184.0,4183.9,0.7046]
[1758604745363,0.87427271,4184.0,4183.9,0.7046]
[1758604745555,4.90527271,4184.0,4183.9,0.7046]
[1758604745758,7.85055711,4184.0,4183.9,0.004]
[1758604745963,8.55435711,4184.0,4183.9,0.004]
[1758604746191,9.41444656,4184.0,4183.9,0.004]
[1758604747011,13.17543173,4184.0,4183.9,0.004]
[1758604747489,12.84285338,4184.0,4183.9,0.004]
[1758604748090,11.55435711,4184.0,4183.9,0.004]
[1758604748466,11.55431686,4184.0,4183.9,0.004]
[1758604748994,12.84281313,4184.0,4183.9,0.004]
[1758604749194,11.55431686,4184.0,4183.9,0.004]
[1758604749706,12.84281313,4184.0,4183.9,0.004]
[1758604749865,11.08801686,4184.0,4183.9,0.004]
[1758604750189,10.85051686,4184.0,4183.9,0.004]
[1758604750407,11.55429232,4184.0,4183.9,0.004]
[1758604750590,10.85049232,4184.0,4183.9,0.004]
[1758604751000,17.91049232,4184.0,4183.9,0.004]
[1758604751493,18.61429232,4184.0,4183.9,0.004]
[1758604751701,17.91049232,4184.0,4183.9,0.004]
[1758604752402,18.61429232,4184.0,4183.9,0.004]
[1758604752604,13.32426528,4184.0,4183.9,0.004]
[1758604752808,0.87420792,4184.0,4183.9,0.7046]
[1758604753020,0.87420792,4184.0,4183.9,3.09471448]
[1758604753220,0.35827441,4184.0,4183.9,3.09471448]
[1758604753376,0.35827441,4184.0,4183.9,3.11861562]
[1758604753579,0.22389721,4184.0,4183.9,3.67029971]
[1758604754416,0.22389721,4184.0,4183.9,3.64639857]
[1758604755177,0.001,4184.1,4184.0,2.39005736]
[1758604755490,0.22456925,4184.1,4184.0,3.09065736]
[1758604755692,0.22456925,4184.1,4184.0,3.70662675]
[1758604756577,0.001,4184.1,4184.0,1.31656939]
[1758604756780,0.35862362,4184.1,4184.0,0.6911]
[1758604757181,0.35862362,4184.1,4184.0,3.08115736]
[1758604757409,0.001,4184.1,4184.0,3.08115736]
[1758604757911,0.001,4184.1,4184.0,0.6911]
[1758604759541,0.001,4184.1,4184.0,3.08115736]
[1758604759737,0.001,4184.1,4184.0,3.39246332]
[1758604760054,0.001,4184.1,4184.0,1.00240596]
[1758604760838,0.001,4184.1,4184.0,0.6911]
[1758604761567,0.001,4184.1,4184.0,3.08115736]
[1758604761860,0.001,4184.1,4184.0,7.11215736]
[1758604762155,0.001,4184.1,4184.0,10.11615736]
[1758604762910,0.001,4184.1,4184.0,6.08515736]
[1758604763107,0.001,4184.1,4184.0,10.98498855]
[1758604763369,0.001,4184.1,4184.0,11.10418855]
[1758604763951,0.001,4184.1,4184.0,11.19997365]
[1758604764457,0.001,4184.1,4184.0,7.16997365]
[1758604764658,0.001,4184.1,4184.0,11.19997365]
[1758604765138,0.001,4184.1,4184.0,11.10418855]
[1758604765719,0.001,4184.1,4184.0,8.71413119]
[1758604765925,0.001,4184.1,4184.0,11.10418855]
[1758604771145,0.001,4184.1,4184.0,4.23703119]
[1758604771344,0.001,4184.1,4184.0,4.034]
[1758604772358,0.001,4184.1,4184.0,7.09965736]
[1758604772546,0.001,4184.1,4184.0,4.7096]
[1758604772746,0.001,4184.1,4184.0,4.2625]
[1758604772946,0.001,4184.1,4184.0,4.034]
[1758604773160,0.001,4184.1,4184.0,7.50624747]
[1758604774658,0.001,4184.1,4184.0,0.004]
[1758604774859,0.1202,4184.1,4184.0,4.05690057]
[1758604775366,0.8216,4184.1,4184.0,0.004]
[1758604775552,1.967033,4184.1,4184.0,0.004]
[1758604775757,1.178673,4184.1,4184.0,0.004]
[1758604777771,1.1787417,4184.1,4184.0,0.004]
[1758604778067,3.56874193,4184.1,4184.0,0.004]
[1758604779072,1.1787417,4184.1,4184.0,0.004]
[1758604780981,1.69322238,4184.1,4184.0,0.004]
[1758604781273,4.08322261,4184.1,4184.0,0.004]
[1758604781982,5.83973606,4184.1,4184.0,0.004]
[1758604782386,3.44973583,4184.1,4184.0,0.004]
[1758604782601,0.99182238,4184.1,4184.0,0.004]
[1758604782961,5.02182238,4184.1,4184.0,0.004]
[1758604783783,0.99182238,4184.1,4184.0,0.004]
[1758604786413,3.38182261,4184.1,4184.0,0.004]
[1758604786583,10.67962261,4184.1,4184.0,0.004]
[1758604786921,8.75272238,4184.1,4184.0,0.004]
[1758604787120,8.28962238,4184.1,4184.0,0.004]
[1758604787298,8.05182238,4184.1,4184.0,0.004]
[1758604788617,8.05225305,4184.1,4184.0,0.004]
[1758604788818,8.05225304,4184.1,4184.0,0.004]
[1758604789719,11.14315327,4184.1,4184.0,0.004]
[1758604790422,15.17315327,4184.1,4184.0,0.004]
[1758604793323,12.78315304,4184.1,4184.0,0.004]
[1758604795195,15.17315327,4184.1,4184.0,0.004]
[1758604795891,12.78315304,4184.1,4184.0,0.004]
[1758604796984,15.17315327,4184.1,4184.0,0.004]
[1758604797610,12.08225304,4184.1,4184.0,0.004]
[1758604799218,8.05225304,4184.1,4184.0,0.004]
[1758604799404,0.35857236,4184.1,4184.0,3.07065736]
[1758604799796,0.2247991,4184.1,4184.0,3.07065736]
[1758604799989,0.001,4184.1,4184.0,3.07065736]
[1758604800822,0.35917429,4184.1,4184.0,0.004]
[1758604801036,0.35917429,4184.1,4184.0,3.07065736]
[1758604801629,0.001,4184.1,4184.0,3.07065736]
[1758604801842,0.001,4184.1,4184.0,3.09455793]
[1758604802422,0.001,4184.1,4184.0,6.88655793]
[1758604802617,0.001,4184.1,4184.0,8.01801739]
[1758604803650,0.001,4184.1,4184.0,7.22601739]
[1758604803946,0.001,4184.1,4184.0,13.22624926]
[1758604804124,0.001,4184.1,4184.0,14.01824926]
[1758604809656,0.001,4184.1,4184.0,11.95124926]
[1758604809862,0.001,4184.1,4184.0,14.01824926]
[1758604811140,0.001,4184.1,4184.0,14.11401738]
[1758604812367,0.001,4184.1,4184.0,12.04601738]
[1758604812567,0.001,4184.1,4184.0,14.11201738]
[1758604812979,0.001,4184.1,4184.0,12.04601738]
[1758604813292,0.001,4184.1,4184.0,14.11201738]
[1758604813586,0.001,4184.6,4184.5,6.18177177]
[1758604813793,0.001,4184.6,4184.5,11.06693399]
[1758604814089,0.001,4184.6,4184.5,11.86273399]
[1758604815385,0.001,4184.6,4184.5,11.95850211]
[1758604818682,0.001,4184.6,4184.5,11.52740211]
[1758604819319,0.001,4184.6,4184.5,11.98000211]
[1758604820092,0.001,4184.6,4184.5,7.49940211]
[1758604820401,0.001,4184.6,4184.5,13.34790211]
[1758604820600,0.001,4184.6,4184.5,13.58760211]
[1758604820796,0.001,4184.6,4184.5,14.04020211]
[1758604827106,0.001,4185.0,4184.5,14.04020211]
[1758604827107,0.001,4185.0,4184.9,6.18154335]
[1758604827305,0.1192,4186.2,4185.4,2.38925789]
[1758604827306,1e-08,4185.5,4185.4,2.38925789]
[1758604827600,1e-08,4185.5,4185.4,12.29815046]
[1758604827799,1e-08,4185.5,4185.4,13.08575789]
[1758604828410,1e-08,4185.9,4185.8,3.18102957]
[1758604828606,0.51451504,4187.2,4185.8,3.18102957]
[1758604828607,0.1192,4187.6,4187.5,3.1800597]
[1758604828770,0.02,4187.9,4187.8,3.17988862]
[1758604828969,0.02,4187.9,4187.8,10.22288862]
[1758604829513,0.02,4187.9,4187.8,12.28888862]
[1758604834188,0.4487,4188.9,4188.1,0.792]
[1758604834507,0.4487,4188.9,4188.8,2.38731856]
[1758604834508,0.02,4188.9,4188.8,2.38731856]
[1758604834708,0.02,4188.9,4188.8,9.45119174]
[1758604834908,0.02,4188.9,4188.8,9.42731856]
[1758604838493,0.02,4188.9,4188.8,9.54651856]
[1758604838808,0.02,4188.9,4188.8,11.01382061]
[1758604839291,0.02,4188.9,4188.8,13.07482061]
[1758604839494,0.02,4188.9,4188.8,13.86682061]
[1758604841594,0.02,4188.9,4188.8,11.00882061]
[1758604841941,0.6941,4188.9,4188.8,11.00882061]
[1758604842341,0.6941,4188.9,4188.8,6.97382061]
[1758604842643,0.6941,4188.9,4188.8,11.00882061]
[1758604842816,0.4487,4188.9,4188.8,11.00882061]
[1758604843139,0.02,4188.9,4188.8,11.00882061]
[1758604843327,0.02,4188.9,4188.8,11.80082061]
[1758604845451,0.02,4188.9,4188.8,12.49312061]
[1758604845951,0.02,4188.9,4188.8,12.25342061]
[1758604846117,0.02,4188.9,4188.8,11.80082061]
[1758604847349,0.02,4188.9,4188.8,12.02802061]
[1758604847523,0.02,4188.9,4188.8,12.48792061]
[1758604847723,0.02,4188.9,4188.8,7.76582061]
[1758604847922,0.02,4188.9,4188.8,11.00482061]
[1758604848256,0.02,4188.9,4188.8,13.06882061]
[1758604849341,0.02,4188.9,4188.8,13.86082061]
[1758604850456,0.02,4188.9,4188.8,6.97382061]
[1758604850673,0.7116,4188.9,4188.8,13.06982061]
[1758604850968,0.4786,4188.9,4188.8,13.06982061]
[1758604851128,0.02,4188.9,4188.8,13.06982061]
[1758604852876,0.02,4188.9,4188.8,6.97382061]
[1758604853182,0.4786,4188.9,4188.8,13.06882061]
[1758604853724,0.7116,4188.9,4188.8,13.06882061]
[1758604854164,0.7116,4188.9,4188.8,6.97382061]
[1758604854337,0.7116,4188.9,4188.8,9.41731856]
[1758604854742,0.7126,4188.9,4188.8,9.41731856]
[1758604855350,0.4796,4188.9,4188.8,9.41731856]
[1758604855732,0.021,4188.9,4188.8,5.38731856]
[1758604856033,0.021,4188.9,4188.8,11.79309061]
[1758604858308,0.37843555,4188.9,4188.8,11.79309061]
[1758604859305,0.37843555,4188.9,4188.8,11.10599061]
[1758604860606,0.021,4188.9,4188.8,11.10599061]
[1758604860908,0.37859266,4188.9,4188.8,11.79309061]
[1758604861304,0.15509725,4188.9,4188.8,11.79309061]
[1758604861708,0.15509725,4188.9,4188.8,11.10599061]
[1758604862692,0.37870268,4188.9,4188.8,11.10599061]
[1758604863824,0.89410772,4188.9,4188.8,13.04579061]
[1758604864022,0.37870268,4188.9,4188.8,13.16499061]
[1758604864206,0.89444515,4188.9,4188.8,13.16499061]
[1758604866336,0.89444515,4188.9,4188.8,7.07599061]
[1758604866499,0.89444515,4188.9,4188.8,13.16699061]
[1758604867807,0.53674247,4188.9,4188.8,13.16699061]
[1758604868050,0.89493807,4188.9,4188.8,13.16699061]
[1758604868351,0.89498347,4188.9,4188.8,13.16699061]
[1758604868837,0.53678787,4188.9,4188.8,13.16699061]
[1758604869307,0.37920952,4188.9,4188.8,11.10099061]
[1758604869643,0.4796,4188.9,4188.8,13.16499061]
[1758604870047,0.021,4188.9,4188.8,13.16499061]
[1758604872743,0.24489214,4188.9,4188.8,13.16499061]
[1758604872944,0.021,4188.9,4188.8,13.16499061]
[1758604874236,0.3792263,4188.9,4188.8,13.16499061]
[1758604875231,0.15533486,4188.9,4188.8,13.16499061]
[1758604877975,0.15533486,4188.9,4188.8,7.07599061]
[1758604878278,0.59343486,4188.9,4188.8,12.37199061]
[1758604878433,0.83623486,4188.9,4188.8,6.28399061]
[1758604878635,0.83623486,4188.9,4188.8,11.59451856]
[1758604879180,0.83623486,4188.9,4188.8,5.50651856]
[1758604879367,0.83623486,4188.9,4188.8,9.53051856]
[1758604880258,0.021,4188.9,4188.8,9.53051856]
[1758604883679,0.021,4188.9,4188.8,10.57201856]
[1758604883895,0.021,4188.9,4188.8,12.52666061]
[1758604886936,0.001,4189.4,4188.9,6.17926157]
[1758604887201,0.001,4189.4,4189.3,2.38703363]
[1758604887369,0.001,4189.4,4189.3,6.41103363]
[1758604889302,0.6819,4189.4,4189.3,6.41103363]
[1758604889504,0.6819,4189.4,4189.3,7.30276817]
[1758604889706,0.4391,4189.4,4189.3,7.30276817]
[1758604892716,0.001,4189.4,4189.3,7.30276817]
[1758604897313,0.001,4189.4,4189.3,6.41103363]
[1758604897678,0.6819,4189.4,4189.3,2.38703363]
[1758604897882,0.6819,4189.4,4189.3,6.41003363]
[1758604898523,0.6819,4189.4,4189.3,2.38703363]
[1758604898696,0.81614818,4189.4,4189.3,4.023]
[1758604898900,1.15909718,4189.4,4189.3,6.41003363]
[1758604899931,1.32655898,4189.4,4188.7,0.1192]
[1758604900224,0.1192,4189.0,4188.9,2.38725146]
[1758604900383,0.93434818,4189.0,4188.9,4.87925146]
[1758604900587,0.25344818,4189.0,4188.9,4.87925146]
[1758604900799,0.93434818,4189.0,4188.9,4.87925146]
[1758604901022,0.93434818,4189.0,4188.9,4.87926157]
[1758604902519,0.93434818,4189.0,4188.9,4.023]
[1758604902822,1.30291789,4189.0,4188.9,4.023]
[1758604903401,1.07930332,4189.0,4188.9,6.41026157]
[1758604903611,0.93434818,4189.0,4188.9,6.41026157]
[1758604903798,0.93434818,4189.0,4188.9,4.023]
[1758604903995,1.15791005,4189.0,4188.4,3.10523436]
[1758604904309,0.1192,4188.7,4188.6,2.38742941]
[1758604904499,0.8001,4188.7,4188.6,6.41042941]
[1758604906408,0.8001,4188.7,4188.6,4.023]
[1758604906611,0.8001,4188.7,4188.6,6.41043255]
[1758604907167,0.1192,4188.7,4188.6,6.41043255]
[1758604908022,0.1192,4188.7,4188.6,2.38743255]
[1758604908221,0.1192,4188.7,4188.6,6.41043255]
[1758604909162,0.1192,4188.7,4188.2,0.4633]
[1758604909163,0.94271162,4188.7,4188.2,2.38765262]
[1758604909369,0.8234873,4188.6,4188.3,6.41060191]
[1758604909535,0.6895,4188.5,4188.3,6.41060191]
[1758604909717,2.90218822,4189.0,4188.3,6.41060191]
[1758604909718,0.6895,4188.4,4188.3,6.41060191]